fUST/lending_fUST_20240613
["ID","MTS","AMOUNT","RATE_DAILY","PERIOD"]
[329332728,1718253047538,-1811.43313951,0.00016436,2]
[329332729,1718253047565,-155.51597423,0.00016436,2]
[329332730,1718253047579,-155.43774915,0.00016436,2]
[329332731,1718253047593,-8850.63886366,0.00016436,2]
[329332732,1718253047639,-252.69729863,0.00016436,2]
[329332733,1718253047663,-741.70691624,0.00016436,2]
[329332735,1718253047682,-525.4282151,0.00016436,2]
[329332737,1718253047696,-155.01550155,0.00016436,2]
[329332739,1718253047713,-283.15764922,0.00016436,2]
[329332741,1718253047731,-182.05464704,0.00016436,2]
[329332742,1718253047747,-318.39694106,0.00016436,2]
[329332744,1718253047764,-1801.54141711,0.00016437,2]
[329332745,1718253047781,-500.0,0.00016438,2]
[329332747,1718253047801,-519.70281015,0.00016438,2]
[329332748,1718253047813,-500.0,0.00016438,2]
[329332750,1718253047827,-500.0,0.00016438,2]
[329332752,1718253047845,-630.13861783,0.00016438,2]
[329332753,1718253047859,-481.72424941,0.00016438,2]
[329332755,1718253047876,-500.0,0.00016438,2]
[329332757,1718253047892,-472.45146374,0.00016438,2]
[329332759,1718253047907,-500.0,0.00016438,2]
[329332761,1718253047930,-504.44550167,0.00016438,2]
[329332764,1718253047950,-500.0,0.00016438,2]
[329332766,1718253047965,-500.0,0.00016438,2]
[329332769,1718253047996,-329.0253959,0.00016438,2]
[329332771,1718253048023,-500.0,0.00016438,2]
[329332773,1718253048040,-500.0,0.00016438,2]
[329332775,1718253048058,-500.0,0.00016438,2]
[329332776,1718253048079,-500.0,0.00016438,2]
[329332777,1718253048100,-507.81207865,0.00016438,2]
[329332778,1718253048113,-500.0,0.00016438,2]
[329332779,1718253048133,-500.0,0.00016438,2]
[329332780,1718253048152,-500.0,0.00016438,2]
[329332781,1718253048165,-500.0,0.00016438,2]
[329332782,1718253048183,-420.18544994,0.00016438,2]
[329332783,1718253048195,-500.0,0.00016438,2]
[329332784,1718253048206,-500.0,0.00016438,2]
[329332785,1718253048219,-2836.97,0.00016438,2]
[329332786,1718253048230,-500.0,0.00016438,2]
[329332787,1718253048242,-500.0,0.00016438,2]
[329332788,1718253048254,-500.0,0.00016438,2]
[329332789,1718253048267,-616.6,0.00016438,2]
[329332790,1718253048282,-678.18,0.00016438,2]
[329332791,1718253048299,-500.0,0.00016438,2]
[329332792,1718253048316,-500.0,0.00016438,2]
[329332793,1718253048330,-505.26578951,0.00016438,2]
[329332794,1718253048343,-504.70595181,0.00016438,2]
[329332795,1718253048359,-500.0,0.00016438,2]
[329332796,1718253048375,-500.0,0.00016438,2]
[329332797,1718253048388,-500.0,0.00016438,2]
[329332798,1718253048406,-270.81004488,0.00016438,2]
[329332799,1718253048421,-500.0,0.00016438,2]
[329332800,1718253048434,-500.0,0.00016438,2]
[329332801,1718253048451,-500.0,0.00016438,2]
[329332802,1718253048476,-1381.4,0.00016438,2]
[329332803,1718253048494,-500.0,0.00016438,2]
[329332804,1718253048513,-500.0,0.00016438,2]
[329332805,1718253048533,-500.0,0.00016438,2]
[329332806,1718253048567,-500.0,0.00016438,2]
[329332807,1718253048640,-1134.36,0.00016438,2]
[329332808,1718253048652,-763.32,0.00016438,2]
[329332809,1718253048664,-587.11,0.00016438,2]
[329332810,1718253048679,-800.32,0.00016438,2]
[329332811,1718253048698,-500.0,0.00016438,2]
[329332812,1718253048720,-500.0,0.00016438,2]
[329332813,1718253048737,-500.0,0.00016438,2]
[329332814,1718253048754,-914.89,0.00016438,2]
[329332815,1718253048765,-500.0,0.00016438,2]
[329332816,1718253048776,-1764.78,0.00016438,2]
[329332817,1718253048789,-500.0,0.00016438,2]
[329332818,1718253048800,-473.47144283,0.00016438,2]
[329332819,1718253048813,-500.0,0.00016438,2]
[329332820,1718253048829,-500.0,0.00016438,2]
[329332821,1718253048846,-500.0,0.00016438,2]
[329332822,1718253048864,-500.0,0.00016438,2]
[329332823,1718253048874,-500.0,0.00016438,2]
[329332824,1718253048886,-4676.78,0.00016438,2]
[329332825,1718253048900,-604.2,0.00016438,2]
[329332826,1718253048910,-505.60479906,0.00016438,2]
[329332827,1718253048924,-500.0,0.00016438,2]
[329332828,1718253048940,-2858.68,0.00016438,2]
[329332829,1718253048953,-500.0,0.00016438,2]
[329332830,1718253048980,-500.0,0.00016438,2]
[329332831,1718253048992,-500.0,0.00016438,2]
[329332832,1718253049017,-301.75557073,0.00016438,2]
[329332833,1718253049033,-504.24214208,0.00016438,2]
[329332834,1718253049051,-4194.98,0.00016438,2]
[329332835,1718253049074,-372.50592829,0.00016438,2]
[329332836,1718253049086,-1170.63,0.00016438,2]
[329332837,1718253049100,-500.0,0.00016438,2]
[329332838,1718253049114,-270.80089005,0.00016438,2]
[329332840,1718253049125,-627.66,0.00016438,2]
[329332842,1718253049135,-1382.93,0.00016438,2]
[329332844,1718253049146,-500.0,0.00016438,2]
[329332846,1718253049160,-439.28333055,0.00016438,2]
[329332848,1718253049172,-500.0,0.00016438,2]
[329332850,1718253049187,-500.0,0.00016438,2]
[329332852,1718253049198,-500.0,0.00016438,2]
[329332854,1718253049214,-500.0,0.00016438,2]
[329332855,1718253049230,-500.0,0.00016438,2]
[329332857,1718253049253,-500.0,0.00016438,2]
[329332859,1718253049266,-2017.49,0.00016438,2]
[329332860,1718253049281,-500.0,0.00016438,2]
[329332861,1718253049301,-500.0,0.00016438,2]
[329332862,1718253049327,-500.0,0.00016438,2]
[329332863,1718253049339,-500.0,0.00016438,2]
[329332864,1718253049350,-531.15,0.00016438,2]
[329332865,1718253049366,-500.0,0.00016438,2]
[329332866,1718253049378,-420.0,0.00016508,2]
[329332867,1718253049395,-500.0,0.00016711,2]
[329332868,1718253049405,-500.0,0.00016712,2]
[329332869,1718253049418,-500.0,0.00016712,2]
[329332870,1718253049433,-500.0,0.00016712,2]
[329332871,1718253049444,-500.0,0.00016712,2]
[329332872,1718253049464,-500.0,0.00016712,2]
[329332873,1718253049483,-500.0,0.00016712,2]
[329332874,1718253049495,-500.0,0.00016712,2]
[329332875,1718253049515,-500.0,0.00016712,2]
[329332876,1718253049526,-500.0,0.00016712,2]
[329332877,1718253049542,-500.0,0.00016712,2]
[329332878,1718253049556,-512.33553468,0.00016712,2]
[329332879,1718253049568,-2836.97,0.00016712,2]
[329332880,1718253049589,-500.0,0.00016712,2]
[329332881,1718253049610,-500.0,0.00016712,2]
[329332882,1718253049638,-616.6,0.00016712,2]
[329332883,1718253049656,-678.18,0.00016712,2]
[329332884,1718253049668,-500.0,0.00016712,2]
[329332885,1718253049690,-500.0,0.00016712,2]
[329332886,1718253049711,-500.0,0.00016712,2]
[329332887,1718253049730,-500.0,0.00016712,2]
[329332888,1718253049744,-625.61246061,0.00016712,2]
[329332889,1718253049768,-1381.4,0.00016712,2]
[329332890,1718253049781,-500.0,0.00016712,2]
[329332891,1718253049796,-500.0,0.00016712,2]
[329332892,1718253049812,-1134.36,0.00016712,2]
[329332893,1718253049830,-763.32,0.00016712,2]
[329332894,1718253049847,-587.11,0.00016712,2]
[329332895,1718253049861,-800.32,0.00016712,2]
[329332896,1718253049884,-500.0,0.00016712,2]
[329332897,1718253049904,-914.89,0.00016712,2]
[329332898,1718253049938,-500.0,0.00016712,2]
[329332900,1718253049949,-1764.78,0.00016712,2]
[329332901,1718253049965,-500.0,0.00016712,2]
[329332902,1718253049977,-500.0,0.00016712,2]
[329332903,1718253049989,-504.76488105,0.00016712,2]
[329332904,1718253050001,-4676.78,0.00016712,2]
[329332905,1718253050016,-500.0,0.00016712,2]
[329332906,1718253050038,-604.2,0.00016712,2]
[329332907,1718253050053,-2858.68,0.00016712,2]
[329332908,1718253050070,-500.0,0.00016712,2]
[329332909,1718253050083,-500.0,0.00016712,2]
[329332910,1718253050102,-4194.98,0.00016712,2]
[329332911,1718253050115,-1170.63,0.00016712,2]
[329332912,1718253050133,-627.66,0.00016712,2]
[329332913,1718253050147,-1382.93,0.00016712,2]
[329332914,1718253050161,-500.0,0.00016712,2]
[329332915,1718253050172,-500.0,0.00016712,2]
[329332916,1718253050184,-506.85252024,0.00016712,2]
[329332917,1718253050199,-500.0,0.00016712,2]
[329332918,1718253050210,-500.0,0.00016712,2]
[329332919,1718253050221,-2017.49,0.00016712,2]
[329332920,1718253050244,-212.9175175,0.00016712,2]
[329332921,1718253050255,-500.0,0.00016712,2]
[329332922,1718253050280,-500.0,0.00016712,2]
[329332923,1718253050297,-500.0,0.00016712,2]
[329332924,1718253050331,-2050.84953387,0.00016886,2]
[329332925,1718253050363,-157.02219222,0.00016985,2]
[329332926,1718253050385,-500.0,0.00016985,2]
[329332927,1718253050410,-500.0,0.00016986,2]
[329332928,1718253050464,-500.0,0.00016986,2]
[329332929,1718253050476,-500.0,0.00016986,2]
[329332930,1718253050487,-500.0,0.00016986,2]
[329332931,1718253050499,-2836.97,0.00016986,2]
[329332932,1718253050518,-500.0,0.00016986,2]
[329332933,1718253050530,-500.0,0.00016986,2]
[329332934,1718253050545,-616.6,0.00016986,2]
[329332935,1718253050558,-678.18,0.00016986,2]
[329332936,1718253050569,-500.0,0.00016986,2]
[329332937,1718253050600,-151.29405981,0.00016986,2]
[329332938,1718253050616,-500.0,0.00016986,2]
[329332939,1718253050644,-1381.4,0.00016986,2]
[329332940,1718253050655,-500.0,0.00016986,2]
[329332941,1718253050666,-500.0,0.00016986,2]
[329332942,1718253050677,-1134.36,0.00016986,2]
[329332943,1718253050689,-763.32,0.00016986,2]
[329332944,1718253050700,-587.11,0.00016986,2]
[329332945,1718253050711,-800.32,0.00016986,2]
[329332946,1718253050722,-500.0,0.00016986,2]
[329332947,1718253050733,-914.89,0.00016986,2]
[329332948,1718253050747,-1764.78,0.00016986,2]
[329332949,1718253050758,-500.0,0.00016986,2]
[329332950,1718253050770,-500.0,0.00016986,2]
[329332951,1718253050781,-500.0,0.00016986,2]
[329332952,1718253050798,-4676.78,0.00016986,2]
[329332953,1718253050808,-604.2,0.00016986,2]
[329332954,1718253050819,-2858.68,0.00016986,2]
[329332955,1718253050829,-500.0,0.00016986,2]
[329332956,1718253050840,-500.0,0.00016986,2]
[329332957,1718253050851,-4194.98,0.00016986,2]
[329332958,1718253050862,-1170.63,0.00016986,2]
[329332959,1718253050874,-627.66,0.00016986,2]
[329332960,1718253050886,-1382.93,0.00016986,2]
[329332961,1718253050896,-500.0,0.00016986,2]
[329332962,1718253050909,-500.0,0.00016986,2]
[329332963,1718253050924,-500.0,0.00016986,2]
[329332964,1718253050935,-2017.49,0.00016986,2]
[329332965,1718253050946,-500.0,0.00016986,2]
[329332966,1718253050957,-500.0,0.00016986,2]
[329332967,1718253050976,-510.12029792,0.00016986,2]
[329332968,1718253050987,-500.0,0.00017259,2]
[329332969,1718253051000,-500.0,0.0001726,2]
[329332970,1718253051012,-500.0,0.0001726,2]
[329332971,1718253051024,-500.0,0.0001726,2]
[329332972,1718253051035,-2836.97,0.0001726,2]
[329332973,1718253051048,-500.0,0.0001726,2]
[329332974,1718253051059,-500.0,0.0001726,2]
[329332975,1718253051069,-616.6,0.0001726,2]
[329332976,1718253051082,-678.18,0.0001726,2]
[329332977,1718253051093,-500.0,0.0001726,2]
[329332978,1718253051104,-1381.4,0.0001726,2]
[329332979,1718253051115,-500.0,0.0001726,2]
[329332980,1718253051128,-1134.36,0.0001726,2]
[329332981,1718253051140,-763.32,0.0001726,2]
[329332982,1718253051152,-587.11,0.0001726,2]
[329332983,1718253051166,-800.32,0.0001726,2]
[329332984,1718253051179,-500.0,0.0001726,2]
[329332985,1718253051190,-914.89,0.0001726,2]
[329332986,1718253051204,-1764.78,0.0001726,2]
[329332987,1718253051217,-500.0,0.0001726,2]
[329332988,1718253051234,-500.0,0.0001726,2]
[329332989,1718253051249,-500.0,0.0001726,2]
[329332990,1718253051271,-4676.78,0.0001726,2]
[329332991,1718253051284,-604.2,0.0001726,2]
[329332992,1718253051312,-2858.68,0.0001726,2]
[329332993,1718253051332,-500.0,0.0001726,2]
[329332994,1718253051344,-500.0,0.0001726,2]
[329332995,1718253051356,-4194.98,0.0001726,2]
[329332996,1718253051374,-1170.63,0.0001726,2]
[329332997,1718253051511,-627.66,0.0001726,2]
[329332998,1718253051522,-1382.93,0.0001726,2]
[329332999,1718253051543,-500.0,0.0001726,2]
[329333000,1718253051568,-500.0,0.0001726,2]
[329333001,1718253051594,-392.36626128,0.0001726,2]
[329333002,1718253051640,-2017.49,0.0001726,2]
[329333003,1718253051688,-500.0,0.0001726,2]
[329333004,1718253051705,-500.0,0.0001726,2]
[329333005,1718253051727,-646.54061342,0.00017483,2]
[329333006,1718253051738,-2050.84953384,0.00017503,2]
[329333007,1718253051752,-500.0,0.00017534,2]
[329333008,1718253051772,-205.84704331,0.00017534,2]
[329333009,1718253051788,-500.0,0.00017534,2]
[329333010,1718253051811,-2836.97,0.00017534,2]
[329333011,1718253051828,-500.0,0.00017534,2]
[329333012,1718253051846,-500.0,0.00017534,2]
[329333013,1718253051858,-616.6,0.00017534,2]
[329333014,1718253051870,-678.18,0.00017534,2]
[329333015,1718253051890,-500.0,0.00017534,2]
[329333016,1718253051921,-1381.4,0.00017534,2]
[329333017,1718253051949,-500.0,0.00017534,2]
[329333018,1718253051971,-1134.36,0.00017534,2]
[329333019,1718253051995,-763.32,0.00017534,2]
[329333020,1718253052016,-587.11,0.00017534,2]
[329333021,1718253052032,-800.32,0.00017534,2]
[329333022,1718253052058,-500.0,0.00017534,2]
[329333023,1718253052076,-914.89,0.00017534,2]
[329333024,1718253052089,-1764.78,0.00017534,2]
[329333025,1718253052118,-500.0,0.00017534,2]
[329333026,1718253052141,-500.0,0.00017534,2]
[329333027,1718253052152,-500.0,0.00017534,2]
[329333028,1718253052167,-4676.78,0.00017534,2]
[329333029,1718253052191,-604.2,0.00017534,2]
[329333030,1718253052209,-2858.68,0.00017534,2]
[329333031,1718253052235,-500.0,0.00017534,2]
[329333032,1718253052246,-500.0,0.00017534,2]
[329333033,1718253052263,-4194.98,0.00017534,2]
[329333034,1718253052278,-1170.63,0.00017534,2]
[329333035,1718253052291,-627.66,0.00017534,2]
[329333036,1718253052314,-1382.93,0.00017534,2]
[329333037,1718253052333,-500.0,0.00017534,2]
[329333038,1718253052345,-500.0,0.00017534,2]
[329333039,1718253052357,-2017.49,0.00017534,2]
[329333040,1718253052376,-500.0,0.00017534,2]
[329333041,1718253052392,-500.0,0.00017534,2]
[329333042,1718253052404,-153.0,0.00017535,2]
[329333043,1718253052417,-153.0,0.00017535,2]
[329333044,1718253052429,-153.0,0.00017535,2]
[329333045,1718253052445,-153.9779854,0.00017535,2]
[329333046,1718253052460,-153.0,0.00017535,2]
[329333047,1718253052471,-5282.5380268,0.0001755,2]
[329333048,1718253052484,-448.7020585,0.00017671,2]
[329333049,1718253052497,-242.4,0.0001768,2]
[329333050,1718253052508,-500.0,0.00017689,2]
[329333051,1718253052526,-150.0,0.00017757,2]
[329333052,1718253052553,-500.0,0.00017808,2]
[329333053,1718253052572,-500.0,0.00017808,2]
[329333054,1718253052671,-2836.97,0.00017808,2]
[329333055,1718253052684,-500.0,0.00017808,2]
[329333056,1718253052701,-500.0,0.00017808,2]
[329333057,1718253052715,-616.6,0.00017808,2]
[329333058,1718253052728,-678.18,0.00017808,2]
[329333059,1718253052741,-500.0,0.00017808,2]
[329333060,1718253052756,-1381.4,0.00017808,2]
[329333061,1718253052771,-500.0,0.00017808,2]
[329333062,1718253052782,-1134.36,0.00017808,2]
[329333063,1718253052795,-763.32,0.00017808,2]
[329333064,1718253052806,-587.11,0.00017808,2]
[329333065,1718253052819,-800.32,0.00017808,2]
[329333066,1718253052832,-500.0,0.00017808,2]
[329333067,1718253052847,-914.89,0.00017808,2]
[329333068,1718253052878,-1764.78,0.00017808,2]
[329333069,1718253052892,-500.0,0.00017808,2]
[329333070,1718253052902,-500.0,0.00017808,2]
[329333071,1718253052914,-500.0,0.00017808,2]
[329333072,1718253052924,-4676.78,0.00017808,2]
[329333073,1718253052935,-604.2,0.00017808,2]
[329333074,1718253052946,-2858.68,0.00017808,2]
[329333075,1718253052957,-382.97377604,0.00017808,2]
[329333076,1718253052970,-500.0,0.00017808,2]
[329333077,1718253052982,-4194.98,0.00017808,2]
[329333078,1718253052993,-1170.63,0.00017808,2]
[329333079,1718253053004,-627.66,0.00017808,2]
[329333080,1718253053014,-1382.93,0.00017808,2]
[329333081,1718253053025,-500.0,0.00017808,2]
[329333082,1718253053036,-500.0,0.00017808,2]
[329333083,1718253053048,-2017.49,0.00017808,2]
[329333084,1718253053059,-500.0,0.00017808,2]
[329333085,1718253053070,-500.0,0.00017808,2]
[329333086,1718253053082,-242.4,0.00017881,2]
[329333087,1718253053093,-71622.76068538,0.00017896,2]
[329333088,1718253053111,-17265.23931462,0.00017896,2]
[329333089,1718253053122,-500.0,0.00017898,2]
[329333090,1718253053135,-500.0,0.00017899,2]
[329333091,1718253053148,-500.0,0.00017899,2]
[329333092,1718253053158,-158.97136867,0.00017996,2]
[329333093,1718253053169,-694.28813821,0.00017996,2]
[329333094,1718253053180,-195.73395401,0.00017996,2]
[329333095,1718253053191,-517.29179589,0.00017996,2]
[329333096,1718253053202,-405.81828468,0.00017996,2]
[329333097,1718253053213,-775.53220232,0.00017996,2]
[329333098,1718253053224,-256.69956588,0.00017997,2]
[329333099,1718253053235,-7033.50375945,0.00017997,2]
[329333100,1718253053245,-500.0,0.00017997,2]
[329333101,1718253053257,-261.90121169,0.00017998,2]
[329333102,1718253053276,-10544.36124938,0.00017998,2]
[329333103,1718253053288,-303.07111704,0.00017998,2]
[329333104,1718253053299,-274.14420348,0.00017998,2]
[329333105,1718253053310,-159.41082861,0.00017998,2]
[329333106,1718253053321,-191.510897,0.00017998,2]
[329333107,1718253053332,-928.64768387,0.00017998,2]
[329333108,1718253053343,-155.97158693,0.00017998,2]
[329333109,1718253053355,-386.8012615,0.00017998,2]
[329333110,1718253053366,-155.94762637,0.00017998,2]
[329333111,1718253053377,-155.70262582,0.00017998,2]
[329333112,1718253053390,-282.63576624,0.00017998,2]
[329333113,1718253053400,-554.50842216,0.00017998,2]
[329333114,1718253053411,-1184.43131525,0.00017998,2]
[329333115,1718253053423,-209.44461776,0.00017998,2]
[329333116,1718253053435,-192.5642005,0.00017998,2]
[329333117,1718253053447,-217.88871611,0.00017998,2]
[329333118,1718253053463,-158.5158968,0.00017998,2]
[329333119,1718253053475,-164.1913979,0.00017998,2]
[329333120,1718253053491,-155.29884547,0.00017998,2]
[329333121,1718253053503,-1287.43906058,0.00017998,2]
[329333122,1718253053516,-215.92076339,0.00017998,2]
[329333123,1718253053530,-344.51381745,0.00017998,2]
[329333124,1718253053540,-175.74345533,0.00017998,2]
[329333125,1718253053556,-305.25505408,0.00017998,2]
[329333126,1718253053569,-298.97195217,0.00017998,2]
[329333127,1718253053581,-205.10513153,0.00017998,2]
[329333128,1718253053595,-208.75725212,0.00017998,2]
[329333129,1718253053634,-228.93106886,0.00017998,2]
[329333130,1718253053647,-155.39590875,0.00017998,2]
[329333131,1718253053658,-204.86930726,0.00017998,2]
[329333132,1718253053673,-156.25981554,0.00017998,2]
[329333133,1718253053685,-156.36364689,0.00017998,2]
[329333134,1718253053696,-500.0,0.00017999,2]
[329333135,1718253053707,-3459.91502619,0.00018,2]
[329333136,1718253053732,-789.25244347,0.00018,2]
[329333137,1718253053746,-31896.92727391,0.00018,2]
[329333138,1718253053758,-2765.7597697,0.00018,2]
[329333139,1718253053778,-1355.76865896,0.00018,2]
[329333140,1718253053792,-476.76775304,0.00018,2]
[329333141,1718253053802,-876.95081653,0.00018,2]
[329333142,1718253053814,-306.9737281,0.00018004,2]
[329333143,1718253053824,-500.0,0.00018082,2]
[329333144,1718253053835,-500.0,0.00018082,2]
[329333145,1718253053856,-2836.97,0.00018082,2]
[329333146,1718253053869,-500.0,0.00018082,2]
[329333147,1718253053882,-500.0,0.00018082,2]
[329333148,1718253053896,-616.6,0.00018082,2]
[329333149,1718253053907,-678.18,0.00018082,2]
[329333150,1718253053920,-500.0,0.00018082,2]
[329333151,1718253053933,-1381.4,0.00018082,2]
[329333152,1718253053950,-500.0,0.00018082,2]
[329333153,1718253053961,-1134.36,0.00018082,2]
[329333154,1718253053973,-763.32,0.00018082,2]
[329333155,1718253053983,-587.11,0.00018082,2]
[329333156,1718253053996,-800.32,0.00018082,2]
[329333157,1718253054007,-152.008787,0.00018082,2]
[329333158,1718253054019,-295.79539,0.00018082,2]
[329333159,1718253054031,-295.79539,0.00018082,2]
[329333160,1718253054043,-500.0,0.00018082,2]
[329333161,1718253054054,-914.89,0.00018082,2]
[329333162,1718253054065,-151.0,0.00018082,2]
[329333163,1718253054076,-1000.0,0.00018082,2]
[329333164,1718253054087,-1000.0,0.00018082,2]
[329333165,1718253054098,-1000.0,0.00018082,2]
[329333166,1718253054108,-1000.0,0.00018082,2]
[329333167,1718253054119,-1000.0,0.00018082,2]
[329333168,1718253054129,-1000.0,0.00018082,2]
[329333169,1718253054139,-1000.0,0.00018082,2]
[329333170,1718253054150,-1000.0,0.00018082,2]
[329333171,1718253054160,-1000.0,0.00018082,2]
[329333172,1718253054172,-1000.0,0.00018082,2]
[329333173,1718253054182,-1000.0,0.00018082,2]
[329333174,1718253054193,-682.222965,0.00018082,2]
[329333175,1718253054205,-580.245543,0.00018082,2]
[329333176,1718253054216,-580.245543,0.00018082,2]
[329333177,1718253054226,-1764.78,0.00018082,2]
[329333178,1718253054236,-500.0,0.00018082,2]
[329333179,1718253054247,-151.0,0.00018082,2]
[329333180,1718253054257,-593.511182,0.00018082,2]
[329333181,1718253054268,-593.511182,0.00018082,2]
[329333182,1718253054280,-151.0,0.00018082,2]
[329333183,1718253054294,-151.0,0.00018082,2]
[329333184,1718253054304,-500.0,0.00018082,2]
[329333185,1718253054316,-500.0,0.00018082,2]
[329333186,1718253054327,-4676.78,0.00018082,2]
[329333187,1718253054339,-604.2,0.00018082,2]
[329333188,1718253054349,-2858.68,0.00018082,2]
[329333189,1718253054359,-500.0,0.00018082,2]
[329333190,1718253054370,-151.0,0.00018082,2]
[329333191,1718253054385,-4194.98,0.00018082,2]
[329333192,1718253054413,-1170.63,0.00018082,2]
[329333193,1718253054441,-627.66,0.00018082,2]
[329333194,1718253054452,-216.996502,0.00018082,2]
[329333195,1718253054470,-1382.93,0.00018082,2]
[329333196,1718253054485,-500.0,0.00018082,2]
[329333197,1718253054499,-1578.675525,0.00018082,2]
[329333198,1718253054512,-151.0,0.00018082,2]
[329333199,1718253054524,-1578.675525,0.00018082,2]
[329333200,1718253054536,-1019.512331,0.00018082,2]
[329333201,1718253054554,-151.0,0.00018082,2]
[329333202,1718253054566,-1019.512331,0.00018082,2]
[329333203,1718253054579,-500.0,0.00018082,2]
[329333204,1718253054597,-151.0,0.00018082,2]
[329333205,1718253054632,-151.0,0.00018082,2]
[329333206,1718253054645,-242.4,0.00018082,2]
[329333207,1718253054658,-2017.49,0.00018082,2]
[329333208,1718253054674,-151.744021,0.00018082,2]
[329333209,1718253054692,-500.0,0.00018082,2]
[329333210,1718253054703,-151.0,0.00018082,2]
[329333211,1718253054713,-500.0,0.00018082,2]
[329333212,1718253054750,-2050.84953384,0.00018119,2]
[329333213,1718253054762,-152.133893,0.00018119,2]
[329333214,1718253054773,-151.0,0.00018119,2]
[329333215,1718253054786,-587.0,0.00018159,2]
[329333216,1718253054805,-153.0,0.00018197,2]
[329333217,1718253054816,-153.0,0.00018247,2]
[329333218,1718253054831,-153.0,0.00018247,2]
[329333219,1718253054848,-153.0,0.00018247,2]
[329333220,1718253054864,-153.0,0.00018247,2]
[329333221,1718253054876,-597.50721197,0.00018275,2]
[329333222,1718253054887,-242.4,0.00018282,2]
[329333223,1718253054899,-500.0,0.00018355,2]
[329333224,1718253054921,-500.0,0.00018356,2]
[329333225,1718253054937,-500.0,0.00018356,2]
[329333226,1718253054965,-2836.97,0.00018356,2]
[329333227,1718253054985,-500.0,0.00018356,2]
[329333228,1718253054997,-500.0,0.00018356,2]
[329333229,1718253055018,-616.6,0.00018356,2]
[329333230,1718253055040,-678.18,0.00018356,2]
[329333231,1718253055063,-500.0,0.00018356,2]
[329333232,1718253055075,-1381.4,0.00018356,2]
[329333233,1718253055088,-500.0,0.00018356,2]
[329333234,1718253055100,-1134.36,0.00018356,2]
[329333235,1718253055113,-763.32,0.00018356,2]
[329333236,1718253055127,-587.11,0.00018356,2]
[329333237,1718253055147,-800.32,0.00018356,2]
[329333238,1718253055158,-500.0,0.00018356,2]
[329333239,1718253055170,-914.89,0.00018356,2]
[329333240,1718253055182,-1764.78,0.00018356,2]
[329333241,1718253055193,-500.0,0.00018356,2]
[329333242,1718253055211,-500.0,0.00018356,2]
[329333243,1718253055224,-500.0,0.00018356,2]
[329333244,1718253055235,-4676.78,0.00018356,2]
[329333245,1718253055251,-604.2,0.00018356,2]
[329333246,1718253055262,-2858.68,0.00018356,2]
[329333247,1718253055274,-500.0,0.00018356,2]
[329333248,1718253055285,-4194.98,0.00018356,2]
[329333249,1718253055300,-1170.63,0.00018356,2]
[329333250,1718253055310,-627.66,0.00018356,2]
[329333251,1718253055320,-1382.93,0.00018356,2]
[329333252,1718253055331,-500.0,0.00018356,2]
[329333253,1718253055341,-500.0,0.00018356,2]
[329333254,1718253055352,-2017.49,0.00018356,2]
[329333255,1718253055364,-500.0,0.00018356,2]
[329333256,1718253055389,-500.0,0.00018356,2]
[329333257,1718253055400,-306.0,0.00018357,2]
[329333258,1718253055420,-153.0,0.00018357,2]